bitfinex/quotes_SOLUSD_20250721
["timestamp","ask_amount","ask_price","bid_price","bid_amount"]
[1753105042308,0.06,192.28,192.26,26.0]
[1753105042500,0.06,192.28,192.27,10.9256055]
[1753105043309,0.06,192.28,192.27,37.2056055]
[1753105043497,0.06,192.28,192.27,16.40662489]
[1753105044003,37.54,192.33,192.3,26.0]
[1753105044205,37.54,192.33,192.3,36.9256055]
[1753105044813,0.73,192.31,192.3,26.0]
[1753105045110,0.73,192.31,192.27,5.20101939]
[1753105045295,0.06,192.31,192.29,10.9256055]
[1753105045491,0.06,192.31,192.3,16.1258135]
[1753105045693,0.06,192.31,192.3,42.1258135]
[1753105048518,0.06,192.31,192.3,31.200208]
[1753105048717,0.06,192.31,192.3,42.1258135]
[1753105049211,0.06,192.31,192.3,31.200208]
[1753105049414,0.06,192.31,192.3,42.1258135]
[1753105051805,0.06,192.31,192.3,42.4058135]
[1753105052609,37.5,192.37,192.31,26.0]
[1753105052896,37.5,192.37,192.36,10.9256055]
[1753105053613,37.5,192.37,192.36,16.12419148]
[1753105053808,38.2,192.37,192.36,16.12419148]
[1753105054004,38.2,192.37,192.35,16.12444158]
[1753105054204,0.7,192.36,192.35,16.12444158]
[1753105054544,0.7,192.36,192.33,5.19939686]
[1753105054696,0.76,192.39,192.35,10.9256055]
[1753105054899,0.06,192.39,192.36,26.0]
[1753105055311,0.06,192.39,192.38,10.9256055]
[1753105055506,0.06,192.39,192.38,16.12365103]
[1753105056516,0.06,192.39,192.38,16.40365103]
[1753105056723,0.7,192.46,192.41,26.0]
[1753105057021,37.52,192.45,192.44,10.9256055]
[1753105057605,37.52,192.45,192.44,16.12203035]
[1753105057805,38.22,192.45,192.43,10.9256055]
[1753105058026,0.7,192.44,192.43,10.9256055]
[1753105058221,0.7,192.44,192.42,5.19696497]
[1753105058423,0.7,192.44,192.43,10.9256055]
[1753105058725,0.7,192.44,192.42,10.9256055]
[1753105059029,0.7,192.43,192.42,10.9256055]
[1753105059622,38.22,192.45,192.42,16.12252575]
[1753105059836,0.7,192.44,192.42,16.12252575]
[1753105060001,37.52,192.45,192.41,31.19723008]
[1753105060208,37.52,192.45,192.42,10.9256055]
[1753105060209,0.7,192.44,192.42,10.9256055]
[1753105060427,0.7,192.43,192.42,10.9256055]
[1753105060728,38.22,192.45,192.42,10.9256055]
[1753105061028,27.71028947,192.43,192.31,6.2083]
[1753105061219,10.9256055,192.39,192.33,11.9056055]
[1753105061401,38.24,192.38,192.34,10.9256055]
[1753105061603,37.54,192.38,192.37,16.12392124]
[1753105062525,37.54,192.41,192.37,16.12392124]
[1753105062733,37.54,192.41,192.39,10.9256055]
[1753105062903,0.7,192.45,192.4,10.9256055]
[1753105063112,38.24,192.44,192.4,10.9256055]
[1753105063431,38.24,192.44,192.38,26.0]
[1753105063624,37.54,192.44,192.41,5.19723507]
[1753105064016,37.54,192.44,192.41,16.12284057]
[1753105064214,38.24,192.44,192.41,5.19723507]
[1753105064550,0.7,192.43,192.41,16.12284057]
[1753105064831,0.7,192.43,192.4,42.12308803]
[1753105065025,0.7,192.42,192.38,10.9256055]
[1753105065222,0.7,192.42,192.37,26.0]
[1753105065423,10.9256055,192.4,192.35,16.12446175]
[1753105065619,38.24,192.39,192.38,26.0]
[1753105066437,37.54,192.39,192.38,31.19804553]
[1753105067133,38.24,192.39,192.34,42.12465801]
[1753105067322,0.7,192.38,192.34,5.19905251]
[1753105067631,11.6256055,192.38,192.33,10.9256055]
[1753105067934,0.7,192.37,192.35,26.0]
[1753105068534,13.2781055,192.37,192.31,10.9256055]
[1753105068839,11.6256055,192.36,192.31,10.9256055]
[1753105069039,37.52,192.35,192.34,26.0]
[1753105069340,49.1456055,192.35,192.31,5.1999376]
[1753105069640,0.7,192.34,192.33,26.0]
[1753105070516,0.7,192.34,192.33,31.19939686]
[1753105070721,0.7,192.34,192.33,26.0]
[1753105071423,0.7,192.34,192.32,5.19962664]
[1753105071620,0.7,192.33,192.32,5.19962664]
[1753105072037,0.7,192.33,192.3,26.69826201]
[1753105072218,37.52,192.35,192.3,26.69826201]
[1753105072219,38.2,192.32,192.3,26.69826201]
[1753105072424,0.7,192.31,192.3,31.89845121]
[1753105072727,0.7,192.31,192.3,26.69826201]
[1753105073325,0.7,192.34,192.3,31.89847001]
[1753105073527,12.99001693,192.46,192.33,36.9256055]
[1753105073724,0.7,192.4,192.36,10.9256055]
[1753105074035,37.48,192.4,192.36,10.9256055]
[1753105074228,0.7,192.39,192.35,10.9256055]
[1753105074431,37.48,192.4,192.37,10.9256055]
[1753105074639,0.7,192.39,192.37,10.9256055]
[1753105075043,38.18,192.39,192.37,10.9256055]
[1753105075232,37.48,192.39,192.38,10.9256055]
[1753105075535,38.18,192.41,192.38,10.9256055]
[1753105075735,37.48,192.41,192.39,10.9256055]
[1753105075933,37.48,192.41,192.4,5.19750519]
[1753105076335,38.18,192.41,192.4,16.12311069]
[1753105076730,1.5008,192.42,192.4,16.12311069]
[1753105076934,37.48,192.41,192.4,5.19750519]
[1753105077145,37.48,192.42,192.4,16.12311069]
[1753105077436,38.18,192.42,192.41,10.9256055]
[1753105077622,37.48,192.42,192.41,10.9256055]
[1753105078016,37.48,192.42,192.41,5.19723507]
[1753105078228,37.48,192.42,192.41,16.12284057]
[1753105078634,35.8807,192.42,192.41,16.12284057]
[1753105079354,38.2,192.44,192.41,16.12284057]
[1753105079561,38.2,192.44,192.43,10.9256055]
[1753105079562,37.5,192.44,192.43,10.9256055]
[1753105079859,37.54,192.47,192.43,10.9256055]
[1753105080026,0.06,192.47,192.44,26.0]
[1753105080229,0.7,192.56,192.46,10.9256055]
[1753105080536,38.18,192.55,192.45,0.22]
[1753105080726,38.18,192.55,192.43,8.1463]
[1753105080727,10.9256055,192.49,192.43,2.65536607]
[1753105080933,6.5926,192.5,192.48,10.9256055]
[1753105081149,38.18,192.5,192.49,10.9256055]
[1753105081340,2.2788,192.53,192.47,26.0]
[1753105081540,39.7588,192.53,192.51,10.9256055]
[1753105081737,39.7388,192.53,192.51,10.9256055]
[1753105082065,11.6456055,192.52,192.44,5.19642485]
[1753105082229,11.6456055,192.51,192.46,10.9256055]
[1753105082431,10.9256055,192.49,192.44,26.0]
[1753105082652,37.5,192.48,192.44,36.9256055]
[1753105082953,38.22,192.48,192.44,36.9256055]
[1753105083248,38.22,192.51,192.47,10.9256055]
[1753105083452,38.22,192.51,192.44,31.19619139]
[1753105083453,38.22,192.51,192.44,44.40725353]
[1753105083652,37.5,192.51,192.44,44.40725353]
[1753105084355,0.72,192.5,192.47,10.9256055]
[1753105084549,37.5,192.51,192.47,10.9256055]
[1753105084750,0.72,192.49,192.47,10.9256055]
[1753105084965,0.72,192.48,192.46,10.9256055]
[1753105085145,38.22,192.51,192.47,10.9256055]
[1753105086665,0.72,192.5,192.47,10.9256055]
[1753105087366,0.72,192.49,192.47,10.9256055]
[1753105088035,0.72,192.49,192.46,5.19580971]
[1753105088238,0.72,192.49,192.47,10.9256055]
[1753105088444,0.72,192.48,192.46,5.19580971]
[1753105088639,0.72,192.48,192.46,16.12141521]
[1753105088860,48.4256055,192.51,192.46,16.12141521]
[1753105089173,0.72,192.5,192.47,16.12120214]
[1753105089338,0.72,192.5,192.47,10.9256055]
[1753105089543,0.72,192.49,192.47,10.9256055]
[1753105090070,0.72,192.49,192.46,10.9256055]
[1753105090245,11.6456055,192.48,192.45,0.5]
[1753105090578,10.9256055,192.46,192.45,0.5]
[1753105090949,11.6456055,192.46,192.45,0.5]
[1753105091255,16.84156801,192.46,192.42,26.0]
[1753105091451,0.72,192.45,192.42,26.0]
[1753105091660,0.72,192.44,192.4,16.123012]
[1753105091847,37.44,192.43,192.4,16.123012]
[1753105092353,38.16,192.43,192.4,16.123012]
[1753105092846,38.16,192.43,192.4,5.1974065]
[1753105093048,0.72,192.42,192.39,42.12333293]
[1753105093263,0.72,192.48,192.39,44.19216581]
[1753105093571,38.14,192.48,192.44,10.9256055]
[1753105093748,0.72,192.47,192.43,10.9256055]
[1753105094365,0.72,192.47,192.44,5.19642485]
[1753105094546,0.72,192.46,192.43,5.19668522]
[1753105095076,0.72,192.45,192.41,10.9256055]
[1753105095256,38.12,192.44,192.43,26.0]
[1753105096056,37.4,192.44,192.42,5.1968787]
[1753105096257,37.4,192.44,192.43,26.0]
[1753105096451,48.3256055,192.44,192.38,10.9256055]
[1753105096673,44.19773809,192.44,192.36,10.9256055]
[1753105096968,10.9256055,192.42,192.39,26.0]
[1753105097188,0.72,192.41,192.36,10.9256055]
[1753105097360,38.12,192.4,192.35,16.12446175]
[1753105097672,0.72,192.39,192.33,10.9256055]
[1753105097871,0.72,192.39,192.34,26.0]
[1753105098080,0.72,192.38,192.34,42.62454216]
[1753105098255,0.72,192.37,192.34,42.62454216]
[1753105098454,0.72,192.37,192.31,12.999844]
[1753105098455,48.3256055,192.36,192.31,5.1999376]
[1753105098667,0.72,192.35,192.31,42.1255431]
[1753105098865,37.4,192.36,192.31,42.1255431]
[1753105099169,0.72,192.34,192.33,26.0]
[1753105099549,38.12,192.36,192.33,31.19935408]
[1753105099750,37.38,192.35,192.34,10.9256055]
[1753105100752,37.38,192.35,192.33,42.12495958]
[1753105101174,37.38,192.35,192.33,26.0]
[1753105101357,38.1,192.35,192.33,26.0]
[1753105101682,37.36,192.34,192.33,42.12493506]
[1753105102174,37.36,192.34,192.33,26.0]
[1753105103353,37.36,192.34,192.33,42.12500236]
[1753105104287,0.72,192.38,192.33,42.12500236]
[1753105104487,49.0056055,192.37,192.33,31.19939686]
[1753105104689,0.72,192.36,192.33,26.0]
[1753105104869,0.72,192.35,192.33,26.0]
[1753105105069,0.72,192.34,192.33,26.0]
[1753105106079,0.72,192.34,192.31,10.9256055]
[1753105106366,16.12419926,192.36,192.3,57.92842352]
[1753105106367,38.08,192.33,192.32,26.0]
[1753105106972,37.36,192.33,192.32,26.0]
[1753105107663,37.36,192.33,192.32,5.19966722]
[1753105107975,37.36,192.33,192.32,42.12527272]
[1753105108173,37.36,192.33,192.32,42.62527272]
[1753105108577,37.36,192.33,192.32,31.69966722]
[1753105108780,37.36,192.34,192.32,42.62527272]
[1753105109171,37.36,192.34,192.33,6.8079978]
[1753105109361,0.72,192.39,192.33,6.8079978]
[1753105109557,37.36,192.38,192.35,26.0]
[1753105109760,37.36,192.38,192.37,6.8079978]
[1753105110389,1.6013,192.44,192.4,26.0]
[1753105110578,0.72,192.46,192.43,6.8079978]
[1753105110776,37.38,192.45,192.43,6.8079978]
[1753105110957,0.72,192.46,192.43,6.8079978]
[1753105111159,38.09,192.45,192.39,26.0]
[1753105111463,37.38,192.44,192.42,10.88302379]
[1753105111660,38.09,192.44,192.42,16.07985602]
[1753105112358,0.71,192.44,192.42,16.07985602]
[1753105112561,37.38,192.43,192.42,16.07985602]
[1753105113069,7.1612,192.47,192.42,16.07985602]
[1753105113274,37.36,192.46,192.44,10.88302379]
[1753105113683,38.07,192.46,192.43,10.88302379]
[1753105114765,38.07,192.46,192.44,10.88302379]
[1753105115169,38.07,192.46,192.43,5.19653108]
[1753105115495,38.07,192.46,192.44,10.88302379]
[1753105116061,38.07,192.46,192.43,16.07955487]
[1753105116259,38.07,192.46,192.43,5.19653108]
[1753105116462,38.07,192.46,192.43,16.07955487]
[1753105117363,0.71,192.45,192.43,16.07955487]
[1753105117800,37.36,192.46,192.44,10.88302379]
[1753105117961,37.36,192.46,192.45,10.88302379]
[1753105118870,38.07,192.46,192.45,10.88302379]
[1753105119094,38.07,192.46,192.44,5.19638907]
[1753105119302,38.07,192.46,192.45,10.88302379]
[1753105119977,38.07,192.46,192.44,10.88302379]
[1753105120177,38.07,192.46,192.43,5.1966949]
[1753105120376,38.07,192.46,192.45,10.88302379]
[1753105120597,37.36,192.46,192.45,10.88302379]
[1753105121205,37.36,192.46,192.45,36.88302379]
[1753105121412,0.06,192.48,192.47,26.0]
[1753105121702,0.06,192.48,192.47,36.88302379]
[1753105121906,37.42,192.48,192.47,36.88302379]
[1753105122130,37.42,192.48,192.47,42.07863869]
[1753105122488,37.42,192.48,192.47,31.1956149]
[1753105122998,0.06,192.48,192.47,42.07863869]
[1753105123186,38.13,192.48,192.47,36.88302379]
[1753105123506,38.13,192.48,192.47,42.07863869]
[1753105123717,37.42,192.48,192.47,42.07863869]
[1753105125918,38.13,192.48,192.44,5.69638194]
[1753105126119,38.13,192.48,192.44,5.19637025]
[1753105126120,0.71,192.47,192.44,5.19637025]
[1753105126405,0.71,192.46,192.44,16.07939404]
[1753105127514,0.06,192.48,192.45,10.88302379]
[1753105127713,37.36,192.47,192.46,26.0]
[1753105127909,38.07,192.47,192.46,36.88302379]
[1753105128107,38.07,192.47,192.46,26.0]
[1753105128510,38.07,192.47,192.44,10.88302379]
[1753105128818,38.07,192.47,192.43,0.03]
[1753105128819,0.71,192.46,192.43,10.91302379]
[1753105128995,0.71,192.45,192.43,0.03]
[1753105129396,0.71,192.44,192.43,0.03]
[1753105129604,0.71,192.44,192.43,26.03]
[1753105130206,0.71,192.44,192.43,36.91302379]
[1753105130516,37.36,192.47,192.43,42.10971869]
[1753105130811,0.71,192.46,192.43,31.2266949]
[1753105131021,37.36,192.47,192.45,10.88302379]
[1753105131218,37.36,192.47,192.45,6.80022532]
[1753105131391,38.07,192.47,192.45,6.80022532]
[1753105132017,0.06,192.48,192.46,5.19588485]
[1753105132223,0.06,192.48,192.47,6.80022532]
[1753105132608,37.4,192.48,192.47,6.80022532]
[1753105132922,38.11,192.48,192.47,6.80022532]
[1753105133096,38.11,192.48,192.46,5.19588485]
[1753105133290,0.71,192.47,192.45,11.99632105]
[1753105133503,0.71,192.46,192.44,26.5]
[1753105133705,0.71,192.45,192.44,0.5]
[1753105134207,2.2689,192.45,192.44,0.5]
[1753105134404,2.2689,192.45,192.43,0.03]
[1753105134405,14.26528016,192.45,192.43,0.03]
[1753105134635,61.63490929,192.44,192.43,0.03]
[1753105135222,65.72474147,192.44,192.43,0.03]
[1753105136239,70.92116632,192.44,192.43,0.03]
[1753105136445,83.91222846,192.44,192.35,0.03]
[1753105136618,27.67474147,192.4,192.35,0.03]
[1753105136816,65.03474147,192.4,192.35,5.22876637]
[1753105137018,65.74474147,192.4,192.35,5.22876637]
[1753105138108,65.74474147,192.4,192.35,0.03]
[1753105138611,54.85468397,192.4,192.35,10.9200575]
[1753105138808,0.71,192.4,192.36,10.8900575]
[1753105139031,38.05,192.4,192.37,10.8900575]
[1753105139538,0.71,192.43,192.39,10.9200575]
[1753105139829,37.36,192.42,192.41,16.08729257]
[1753105140408,37.36,192.42,192.4,5.19747461]
[1753105140608,38.07,192.42,192.41,10.8900575]
[1753105140808,6.2812,192.46,192.41,10.8900575]
[1753105140809,6.9912,192.46,192.41,10.8900575]
[1753105141030,0.77,192.48,192.45,10.8900575]
[1753105141348,0.77,192.48,192.47,10.8900575]
[1753105141522,38.13,192.48,192.4,18.1912376]
[1753105141710,0.67,192.47,192.4,18.1912376]
[1753105141913,0.67,192.47,192.46,10.8900575]
[1753105142113,37.42,192.48,192.46,16.08594235]
[1753105142342,38.09,192.48,192.47,10.8900575]
[1753105142543,54.20468397,192.48,192.45,10.8900575]
[1753105142845,54.20468397,192.48,192.42,36.8900575]
[1753105143048,0.67,192.47,192.43,10.8900575]
[1753105143215,0.67,192.46,192.43,10.8900575]
[1753105143414,37.36,192.45,192.44,10.8900575]
[1753105144013,37.36,192.45,192.44,16.08648235]
[1753105144341,37.36,192.45,192.44,16.79648235]
[1753105144549,37.36,192.46,192.44,29.78754449]
[1753105144718,0.06,192.48,192.45,11.6000575]
[1753105145046,0.06,192.48,192.47,10.8900575]
[1753105146234,0.06,192.48,192.47,16.0856724]
[1753105146826,0.06,192.48,192.47,10.8900575]
[1753105148245,0.06,192.48,192.47,5.1956149]
[1753105148417,0.06,192.48,192.47,16.0856724]
[1753105149655,0.06,192.48,192.47,16.7956724]
[1753105149834,0.06,192.48,192.47,16.0856724]
[1753105150018,0.06,192.48,192.47,16.7956724]
[1753105150621,0.06,192.48,192.47,16.0856724]
[1753105151630,0.06,192.48,192.47,16.7956724]
[1753105154541,0.06,192.48,192.47,16.0856724]
[1753105155251,0.06,192.48,192.47,6.79665291]
[1753105155950,0.06,192.48,192.47,7.50665291]
[1753105156437,1e-08,192.48,192.47,7.50665291]
[1753105156637,1e-08,192.48,192.47,11.71562214]
[1753105156839,1.6372,192.6,192.5,26.0]
[1753105157037,37.34,192.59,192.58,6.79665291]
[1753105157243,37.34,192.59,192.58,10.86643728]
[1753105157426,38.01,192.59,192.55,5.19329712]
[1753105157631,38.01,192.59,192.57,10.86643728]
[1753105157941,0.67,192.59,192.58,10.86643728]
[1753105158345,37.34,192.6,192.58,10.86643728]
[1753105158550,37.34,192.6,192.59,10.86643728]
[1753105159461,38.01,192.6,192.58,10.86643728]
[1753105159625,37.34,192.6,192.58,10.86643728]
[1753105159830,0.67,192.59,192.58,10.86643728]
[1753105160435,37.34,192.6,192.58,10.86643728]
[1753105160627,37.34,192.6,192.59,10.86643728]
[1753105160945,38.01,192.6,192.59,10.86643728]
[1753105161652,38.01,192.6,192.58,10.86643728]
[1753105161855,37.34,192.6,192.59,10.86643728]
[1753105162952,38.01,192.6,192.58,10.86643728]
[1753105163137,38.01,192.6,192.54,31.1936724]
[1753105163460,38.01,192.6,192.59,10.86643728]
[1753105163666,37.34,192.6,192.59,10.86643728]
[1753105164050,38.01,192.6,192.59,10.86643728]
[1753105164759,6.1125,192.63,192.59,10.86643728]
[1753105164961,6.1125,192.63,192.55,18.17709685]
[1753105164962,37.32,192.6,192.56,0.71]
[1753105165265,37.32,192.6,192.55,18.17709685]
[1753105165266,37.32,192.6,192.57,0.71]
[1753105165576,37.32,192.6,192.58,5.19264721]
[1753105166138,37.32,192.6,192.59,10.86643728]
[1753105166565,37.32,192.6,192.58,5.19264721]
[1753105166744,37.32,192.6,192.59,10.86643728]
[1753105167575,0.67,192.65,192.59,16.05881486]
[1753105167761,37.32,192.63,192.59,5.19237758]
[1753105167942,37.99,192.63,192.59,5.19237758]
[1753105168273,1.6972,192.67,192.6,0.71]
[1753105168471,12.96979407,192.76,192.6,0.71]
[1753105168472,8.1937,192.75,192.62,26.0]
[1753105168668,0.67,192.79,192.63,82.43688397]
[1753105168963,37.32,192.78,192.76,10.86643728]
[1753105169146,37.32,192.78,192.72,10.86643728]
[1753105169543,37.32,192.78,192.77,10.86643728]
[1753105170658,37.32,192.78,192.75,26.0]
[1753105170842,37.34,192.81,192.77,10.86643728]
[1753105171048,37.34,192.81,192.8,10.86643728]
[1753105171567,37.34,192.81,192.78,10.86643728]
[1753105171738,0.67,192.8,192.78,10.86643728]
[1753105171941,0.67,192.79,192.77,10.86643728]
[1753105172142,0.67,192.79,192.73,0.68]
[1753105172364,0.67,192.78,192.75,10.86643728]
[1753105172565,10.86643728,192.8,192.75,10.86643728]
[1753105172566,37.99,192.77,192.75,10.86643728]
[1753105173163,0.67,192.76,192.71,5.18914431]
[1753105173475,10.86643728,192.75,192.7,10.86643728]
[1753105173659,0.67,192.74,192.7,10.86643728]
[1753105173967,5.18810246,192.75,192.68,31.1898223]
[1753105173968,37.97,192.73,192.69,10.86643728]
[1753105174140,37.97,192.73,192.7,10.86643728]
[1753105174345,37.97,192.73,192.68,31.18990293]
[1753105174548,37.97,192.73,192.7,10.86643728]
[1753105174960,1.6484,192.9,192.73,26.0]
[1753105175245,0.8857,192.92,192.73,26.0]
[1753105175246,0.8857,192.92,192.89,10.86643728]
[1753105175457,0.67,192.91,192.89,10.86643728]
[1753105175658,0.8857,192.92,192.85,5.18537723]
[1753105175863,38.05,192.91,192.87,10.86643728]
[1753105176057,0.67,192.9,192.88,10.86643728]
[1753105176374,0.67,192.89,192.88,10.86643728]
[1753105176549,38.05,192.91,192.88,10.86643728]
[1753105176750,0.67,192.9,192.89,10.86643728]
[1753105176951,0.67,192.9,192.84,31.1855915]
[1753105177169,38.05,192.9,192.88,10.86643728]
[1753105177765,34.66742125,192.89,192.79,0.68]
[1753105177961,7.0163,192.89,192.82,10.86643728]
[1753105178150,16.78468397,192.87,192.82,10.86643728]
[1753105178353,38.05,192.86,192.84,10.86643728]
[1753105178573,37.38,192.86,192.84,10.86643728]
[1753105178975,6.3463,192.89,192.81,0.68]
[1753105179166,6.3463,192.89,192.87,10.86643728]
[1753105179478,37.36,192.88,192.86,10.86643728]
[1753105179679,37.36,192.88,192.81,0.68]
[1753105179974,37.36,192.88,192.81,5.18641618]
[1753105180177,37.36,192.88,192.85,10.86643728]
[1753105180374,0.67,192.87,192.79,1.16464622]
[1753105180557,10.86643728,192.83,192.79,1.16464622]
[1753105180757,0.67,192.82,192.79,12.0310835]
[1753105180946,37.36,192.81,192.79,1.16464622]
[1753105181151,0.67,192.81,192.79,1.16464622]
[1753105181553,37.36,192.8,192.79,1.16464622]
[1753105181755,38.03,192.8,192.79,1.16464622]
[1753105182079,37.36,192.8,192.79,12.0310835]
[1753105182879,37.36,192.8,192.79,1.16464622]
[1753105183362,37.36,192.8,192.79,12.0310835]
[1753105183762,37.36,192.8,192.79,17.21807452]
[1753105184376,37.36,192.8,192.79,17.89807452]
[1753105184674,37.68,192.83,192.79,17.89807452]
[1753105184881,37.68,192.83,192.82,10.86643728]
[1753105185089,37.66,192.84,192.82,10.86643728]
[1753105185381,1.6477,192.86,192.83,10.86643728]
[1753105185676,1.6477,192.86,192.79,32.35163724]
[1753105185677,37.66,192.86,192.79,32.35163724]
[1753105185856,37.66,192.86,192.81,5.18645298]
[1753105186057,0.67,192.85,192.79,32.35140147]
[1753105186272,0.67,192.85,192.79,1.16464622]
[1753105186273,10.86643728,192.83,192.79,1.16464622]
[1753105186583,27.65112125,192.81,192.79,1.16464622]
[1753105186884,11.53643728,192.8,192.79,1.16464622]
[1753105187069,28.32112125,192.8,192.79,1.16464622]
[1753105187871,22.64140596,192.8,192.79,1.16464622]
[1753105188081,33.50784324,192.8,192.79,1.16464622]
[1753105189557,28.32112125,192.8,192.79,1.16464622]
[1753105189979,55.13468397,192.8,192.79,1.16464622]
[1753105190486,71.18784324,192.8,192.79,1.16464622]
[1753105190658,71.18784324,192.8,192.79,0.44464622]
[1753105192180,60.32140596,192.8,192.79,0.44464622]
[1753105192479,33.50784324,192.8,192.79,0.44464622]
[1753105192680,71.18784324,192.8,192.79,0.44464622]
[1753105193258,60.32140596,192.8,192.79,0.44464622]
[1753105193457,71.18784324,192.8,192.79,0.44464622]
[1753105195284,60.32140596,192.8,192.79,0.44464622]
[1753105195590,71.18784324,192.8,192.79,0.44464622]
[1753105197212,71.16784324,192.8,192.79,0.44464622]
[1753105197369,22.64140596,192.8,192.79,0.44464622]
[1753105197570,71.14784324,192.8,192.79,0.44464622]
[1753105198086,71.12784324,192.8,192.79,0.44464622]
[1753105199367,11.53643728,192.8,192.79,0.44464622]
[1753105199592,65.94112125,192.8,192.79,0.44464622]
[1753105200494,37.62,192.8,192.79,0.44464622]
[1753105203487,71.12784324,192.8,192.79,0.44464622]
[1753105203873,33.50784324,192.8,192.79,0.44464622]
[1753105204187,71.20784324,192.8,192.79,0.44464622]
[1753105205076,71.20784324,192.8,192.79,1e-08]
[1753105205672,60.34140596,192.8,192.79,1e-08]
[1753105205976,71.20784324,192.8,192.79,1e-08]
[1753105207098,10.86643728,192.69,192.67,0.03]
[1753105207308,37.68,192.68,192.67,0.03]
[1753105208085,10.86643728,192.7,192.67,0.69]
[1753105208378,37.68,192.69,192.67,0.69]
[1753105208823,16.78468397,192.73,192.68,0.66]
[1753105208989,37.68,192.72,192.68,0.66]
[1753105209189,10.86643728,192.7,192.67,0.03]
[1753105209388,48.62643728,192.69,192.67,0.03]
[1753105209609,37.76,192.68,192.67,0.03]
[1753105210393,22.64326611,192.74,192.67,0.69]
[1753105210595,37.8,192.73,192.67,5.88014716]
[1753105210902,10.86643728,192.69,192.67,0.03]
[1753105211087,48.68643728,192.68,192.67,0.03]
[1753105211293,48.66643728,192.68,192.67,0.03]
[1753105211488,38.47,192.68,192.67,0.03]
[1753105211801,37.86,192.68,192.67,0.03]
[1753105212112,48.72643728,192.68,192.67,0.03]
[1753105212830,37.86,192.68,192.67,0.69]
[1753105213110,48.72643728,192.68,192.67,0.03]
[1753105213804,38.53,192.68,192.67,0.03]
[1753105214121,38.48,192.68,192.67,0.03]
[1753105214321,49.34643728,192.68,192.67,0.03]
[1753105214690,38.48,192.68,192.67,0.03]
[1753105214900,10.86643728,192.68,192.67,0.03]
[1753105215100,49.40643728,192.68,192.67,0.03]
[1753105215420,38.54,192.68,192.67,0.03]
[1753105216600,10.86643728,192.69,192.67,0.03]
[1753105216800,38.62,192.68,192.67,0.03]
[1753105217514,39.29,192.68,192.67,0.03]
[1753105217700,26.0,192.77,192.67,0.03]
[1753105217701,8.1436,192.78,192.67,0.03]
[1753105217900,11.53643728,192.77,192.67,0.69]
[1753105218101,38.66,192.76,192.71,10.86643728]
[1753105218298,10.86643728,192.75,192.71,0.66]
[1753105218496,11.53643728,192.75,192.68,0.66]
[1753105218709,10.86643728,192.69,192.67,0.03]
[1753105219020,17.45468397,192.74,192.67,0.03]
[1753105219320,10.86643728,192.72,192.67,0.69]
[1753105219512,10.86643728,192.71,192.67,0.69]
[1753105219816,49.54643728,192.7,192.67,0.69]
[1753105220011,38.68,192.7,192.67,0.69]
[1753105220214,11.53643728,192.72,192.67,0.69]
[1753105220521,38.68,192.71,192.67,0.69]
[1753105220721,10.86643728,192.72,192.67,0.69]
[1753105221029,38.68,192.7,192.67,0.69]
[1753105221325,38.68,192.69,192.68,0.66]
[1753105221928,10.86643728,192.73,192.68,0.66]
[1753105222128,10.86643728,192.71,192.67,0.03]
[1753105222493,10.86643728,192.71,192.68,0.5]
[1753105222701,35.32682125,192.69,192.67,0.03]
[1753105222901,66.33112125,192.68,192.67,0.03]